bitfinex/quotes_BTCUSD_20250224
["timestamp","ask_amount","ask_price","bid_price","bid_amount"]
[1740412368787,0.25264569,94353.0,94331.0,0.003]
[1740412368996,0.25264569,94353.0,94331.0,0.006]
[1740412369646,0.15,94351.0,94331.0,0.006]
[1740412369884,0.15,94349.0,94331.0,0.006]
[1740412370088,0.15,94349.0,94331.0,0.003]
[1740412370089,0.15,94347.0,94331.0,0.003]
[1740412370291,0.15,94345.0,94331.0,0.003]
[1740412370494,0.1982,94341.0,94331.0,0.008]
[1740412370700,0.15,94339.0,94331.0,0.008]
[1740412370921,0.08483968,94332.0,94331.0,0.008]
[1740412371138,0.41734101,94332.0,94331.0,0.008]
[1740412371339,0.15,94331.0,94268.0,0.0824]
[1740412371547,0.08483968,94308.0,94269.0,0.00942]
[1740412371757,0.31704265,94307.0,94258.0,0.0469]
[1740412371960,0.08483968,94296.0,94259.0,0.10434289]
[1740412372135,0.15,94294.0,94259.0,0.10434289]
[1740412372367,0.15,94292.0,94259.0,0.002131]
[1740412372541,0.15,94290.0,94259.0,0.002131]
[1740412372787,0.15,94284.0,94260.0,0.0214316]
[1740412372996,0.15,94282.0,94259.0,0.002131]
[1740412373202,0.15,94280.0,94259.0,0.002131]
[1740412373409,0.08483968,94276.0,94259.0,0.002131]
[1740412373616,0.15,94274.0,94259.0,0.002131]
[1740412373793,0.15,94272.0,94259.0,0.002131]
[1740412374026,0.08483968,94276.0,94259.0,0.002131]
[1740412374027,0.08483968,94265.0,94259.0,0.002131]
[1740412374251,0.15,94263.0,94259.0,0.002131]
[1740412374447,0.10450261,94262.0,94259.0,0.002131]
[1740412375030,0.10450261,94262.0,94259.0,0.003131]
[1740412375485,0.10450261,94262.0,94259.0,0.005131]
[1740412376703,0.10450261,94262.0,94259.0,0.004131]
[1740412376906,0.10264569,94262.0,94259.0,0.008131]
[1740412377315,0.09659968,94286.0,94259.0,0.006131]
[1740412377534,0.10264569,94284.0,94260.0,0.0218314]
[1740412377741,0.00127333,94283.0,94260.0,0.212177]
[1740412377948,0.10264569,94282.0,94260.0,0.212179]
[1740412378157,0.00127333,94283.0,94282.0,0.159097]
[1740412378359,0.00127333,94283.0,94260.0,0.10264569]
[1740412378360,0.00127333,94283.0,94259.0,0.008131]
[1740412378567,0.00127333,94283.0,94282.0,0.159097]
[1740412378978,0.00127333,94283.0,94280.0,0.1591]
[1740412379182,0.00127333,94283.0,94282.0,0.159097]
[1740412380652,0.00185585,94327.0,94282.0,0.480497]
[1740412380855,0.0777,94348.0,94286.0,0.08483968]
[1740412381064,0.00185543,94340.0,94323.0,0.159028]
[1740412381280,0.0777,94348.0,94323.0,0.159028]
[1740412381482,0.00185539,94340.0,94323.0,0.159028]
[1740412382547,0.00185539,94340.0,94323.0,0.358028]
[1740412382990,0.02654791,94365.0,94323.0,0.358028]
[1740412382991,0.0479,94368.0,94323.0,0.358028]
[1740412383192,0.00185513,94361.0,94323.0,0.358028]
[1740412383394,0.15185513,94361.0,94323.0,0.358028]
[1740412383601,0.15185513,94361.0,94323.0,0.362028]
[1740412383602,0.15,94361.0,94323.0,0.362028]
[1740412383809,0.0018481,94324.0,94323.0,0.368028]
[1740412384784,1e-07,94324.0,94323.0,0.368028]
[1740412384961,1e-07,94324.0,94323.0,0.81410549]
[1740412385634,0.02640992,94376.0,94323.0,0.65007749]
[1740412385825,0.00013014,94367.0,94324.0,0.10412964]
[1740412386007,0.00013014,94367.0,94365.0,0.158957]
[1740412386008,0.10264569,94366.0,94365.0,0.158957]
[1740412386226,0.10264569,94366.0,94334.0,0.3214]
[1740412386463,0.10264569,94366.0,94335.0,0.11910568]
[1740412386749,0.00013014,94367.0,94366.0,0.158955]
[1740412387463,1.4e-07,94367.0,94366.0,0.38780069]
[1740412388449,1.4e-07,94367.0,94366.0,0.292155]
[1740412388755,1.4e-07,94367.0,94366.0,0.158955]
[1740412388986,1.4e-07,94367.0,94366.0,0.007]
[1740412389476,0.10264583,94367.0,94366.0,0.007]
[1740412389719,0.10264583,94367.0,94366.0,0.014]
[1740412389966,0.10264583,94367.0,94366.0,0.007]
[1740412390191,0.10255285,94367.0,94336.0,0.3214]
[1740412390430,0.00100348,94366.0,94336.0,0.3214]
[1740412390684,0.01454085,94378.0,94366.0,0.19899652]
[1740412391155,0.001,94367.0,94366.0,0.19899652]
[1740412391391,0.25264569,94367.0,94366.0,0.19899652]
[1740412391645,0.29329921,94367.0,94366.0,0.19799652]
[1740412392375,0.27975464,94367.0,94366.0,0.19799652]
[1740412393400,0.59337157,94367.0,94366.0,0.19799652]
[1740412393594,0.61337157,94367.0,94366.0,0.19799652]
[1740412393903,0.59337157,94367.0,94366.0,0.19799652]
[1740412394150,0.59337157,94367.0,94366.0,0.19899652]
[1740412394346,0.59337157,94367.0,94366.0,0.19799652]
[1740412395161,0.56711072,94367.0,94366.0,0.19799652]
[1740412395403,0.56911072,94367.0,94366.0,0.19799652]
[1740412396863,0.25549379,94367.0,94366.0,0.19799652]
[1740412397101,0.25349379,94367.0,94366.0,0.19799652]
[1740412397344,0.25549379,94367.0,94366.0,0.19799652]
[1740412397934,0.25749379,94367.0,94366.0,0.19799652]
[1740412398112,0.10749379,94367.0,94366.0,0.19799652]
[1740412398358,0.0048481,94367.0,94366.0,0.37675117]
[1740412398852,0.0048481,94367.0,94366.0,0.37679117]
[1740412399096,0.10749379,94367.0,94366.0,0.19803652]
[1740412400360,0.0008481,94367.0,94366.0,0.35699152]
[1740412400872,1e-07,94367.0,94366.0,0.35699152]
[1740412401122,1e-07,94367.0,94366.0,0.46563721]
[1740412401366,1e-07,94367.0,94366.0,0.54323721]
[1740412401883,1e-07,94367.0,94366.0,0.54723721]
[1740412402150,1e-07,94367.0,94366.0,0.44159152]
[1740412402397,1e-07,94367.0,94366.0,0.43759152]
[1740412402637,1e-07,94367.0,94366.0,0.20503652]
[1740412403128,0.10264579,94367.0,94366.0,0.20503652]
[1740412403366,1e-07,94367.0,94366.0,0.21203652]
[1740412403608,1e-07,94367.0,94366.0,0.20503652]
[1740412403867,1e-07,94367.0,94366.0,0.35699152]
[1740412404136,1e-07,94367.0,94366.0,0.37099152]
[1740412404402,1e-07,94367.0,94366.0,0.20503652]
[1740412404641,1e-07,94367.0,94366.0,0.21203652]
[1740412404883,1e-07,94367.0,94366.0,0.20503652]
[1740412405153,1e-07,94367.0,94366.0,0.22554017]
[1740412405358,1e-07,94367.0,94366.0,0.21854017]
[1740412405542,1e-07,94367.0,94366.0,0.20503652]
[1740412405766,0.10264579,94367.0,94366.0,0.21203652]
[1740412406233,0.25264579,94367.0,94366.0,0.21203652]
[1740412406876,0.25264579,94367.0,94366.0,0.20503652]
[1740412407512,0.26718664,94367.0,94366.0,0.21203652]
[1740412407708,0.2939053,94367.0,94366.0,0.19803652]
[1740412408113,0.2959053,94367.0,94366.0,0.19803652]
[1740412408319,0.62952223,94367.0,94366.0,0.19803652]
[1740412408531,0.63152223,94367.0,94366.0,0.19803652]
[1740412408739,0.60480357,94367.0,94366.0,0.19803652]
[1740412409163,0.76375657,94367.0,94366.0,0.19803652]
[1740412409368,0.60480357,94367.0,94366.0,0.19803652]
[1740412410222,0.61436357,94367.0,94366.0,0.19903652]
[1740412410441,0.62036357,94367.0,94366.0,0.20003652]
[1740412410739,0.61836357,94367.0,94366.0,0.19903652]
[1740412410943,0.61836357,94367.0,94366.0,0.20003652]
[1740412410944,0.85746051,94367.0,94366.0,0.20003652]
[1740412411664,0.62136357,94367.0,94366.0,0.20003652]
[1740412412915,0.58980357,94367.0,94366.0,0.20003652]
[1740412413155,0.60132357,94367.0,94366.0,0.20003652]
[1740412413579,0.78027657,94367.0,94366.0,0.20003652]
[1740412413796,0.60980357,94367.0,94366.0,0.20003652]
[1740412414008,0.89292721,94367.0,94366.0,0.08573384]
[1740412414229,0.02,94350.0,94314.0,0.049]
[1740412414438,0.15,94334.0,94314.0,0.04913014]
[1740412414649,0.15,94332.0,94314.0,0.04913014]
[1740412414854,0.15,94330.0,94314.0,0.04913014]
[1740412415065,0.10264569,94331.0,94314.0,0.04913014]
[1740412415066,0.15,94328.0,94314.0,0.04913014]
[1740412415298,0.15,94326.0,94314.0,0.04913014]
[1740412415508,0.10264569,94325.0,94314.0,0.00013014]
[1740412416339,0.10264569,94325.0,94314.0,0.00182574]
[1740412416550,0.10264569,94325.0,94314.0,0.00482574]
[1740412416771,0.10264569,94316.0,94314.0,0.00482574]
[1740412416975,0.25264569,94315.0,94314.0,0.00482574]
[1740412417619,0.10264569,94315.0,94314.0,0.00482574]
[1740412418114,0.10264569,94315.0,94314.0,0.00182574]
[1740412418523,0.11291026,94315.0,94314.0,0.00182574]
[1740412418729,0.10264569,94315.0,94314.0,0.00182574]
[1740412419968,0.10264569,94315.0,94314.0,0.001]
[1740412420407,0.25264569,94315.0,94314.0,0.001]
[1740412421254,0.26718654,94315.0,94314.0,0.001]
[1740412422081,0.73984447,94315.0,94314.0,0.001]
[1740412422262,0.83903412,94315.0,94314.0,0.001]
[1740412422470,0.83903412,94315.0,94271.0,0.001695]
[1740412422471,0.02,94305.0,94271.0,0.001695]
[1740412422677,0.25264569,94296.0,94271.0,0.001695]
[1740412422883,0.26718654,94296.0,94272.0,0.0478]
[1740412423332,0.25264569,94296.0,94272.0,0.0478]
[1740412423535,0.27905426,94296.0,94272.0,0.0478]
[1740412424199,0.25264569,94296.0,94272.0,0.0478]
[1740412424621,0.25464569,94296.0,94272.0,0.0478]
[1740412425492,0.58480347,94296.0,94272.0,0.0478]
[1740412425715,0.01454085,94295.0,94272.0,0.0478]
[1740412425933,0.25264569,94283.0,94282.0,0.00182649]
[1740412426145,0.73989847,94283.0,94282.0,0.00182649]
[1740412426558,0.58080347,94283.0,94282.0,0.00182649]
[1740412427876,0.58080347,94283.0,94282.0,0.00282649]
[1740412428362,0.58080347,94283.0,94282.0,0.00182649]
[1740412428572,0.25264569,94283.0,94282.0,0.00182649]
[1740412428786,0.25364569,94283.0,94282.0,0.00182649]
[1740412429441,0.10364569,94283.0,94282.0,0.00182649]
[1740412430297,0.10564569,94283.0,94282.0,0.00182649]
[1740412433167,0.003,94283.0,94282.0,0.04882649]
[1740412434031,0.002,94283.0,94282.0,0.04882649]
[1740412434468,0.0008484,94295.0,94282.0,0.04882649]
[1740412434707,0.25264569,94283.0,94282.0,0.04882649]
[1740412434921,0.59152719,94283.0,94271.0,0.001695]
[1740412435144,0.26718654,94272.0,94271.0,0.0021288]
[1740412435354,0.27854654,94272.0,94271.0,0.0021288]
[1740412436608,0.27854654,94272.0,94271.0,0.0021288]
[1740412437448,0.28754654,94272.0,94271.0,0.0021288]
[1740412437862,0.31343039,94272.0,94271.0,0.0021288]
[1740412438074,0.27013489,94272.0,94271.0,0.0021288]
[1740412438285,0.25377489,94272.0,94271.0,0.0021288]
[1740412440584,0.09977489,94272.0,94271.0,0.0021288]
[1740412440928,0.10477489,94272.0,94271.0,0.0021288]
[1740412441169,0.14672822,94272.0,94271.0,0.0021288]
[1740412441793,0.10477489,94272.0,94271.0,0.0021288]
[1740412442876,0.005,94272.0,94271.0,0.2876438]
[1740412443101,0.31361693,94318.0,94271.0,0.1285288]
[1740412443326,0.10264569,94294.0,94271.0,0.1285288]
[1740412443550,0.10264569,94294.0,94272.0,0.3214]
[1740412443825,0.10264569,94294.0,94284.0,0.159093]
[1740412444039,0.10264569,94294.0,94282.0,0.159097]
[1740412444248,0.10264569,94294.0,94272.0,0.533551]
[1740412444475,0.10264569,94294.0,94272.0,0.3214]
[1740412444728,0.15,94293.0,94272.0,0.3214]
[1740412445022,0.00788335,94314.0,94272.0,0.3214]
[1740412445023,0.15,94291.0,94272.0,0.3214]
[1740412445264,0.10264569,94290.0,94273.0,0.159112]
[1740412445524,0.10264569,94290.0,94272.0,0.3214]
[1740412445737,0.10264569,94290.0,94282.0,0.159096]
[1740412445991,0.10264569,94290.0,94280.0,0.159099]
[1740412446199,0.10264569,94290.0,94272.0,0.3214]
[1740412446637,0.10264569,94290.0,94273.0,0.212149]
[1740412446847,0.10264569,94290.0,94272.0,0.3214]
[1740412447057,0.10264569,94290.0,94273.0,0.159112]
[1740412447270,0.10264569,94290.0,94272.0,0.3244]
[1740412447479,0.15,94289.0,94271.0,0.0488288]
[1740412447714,0.25264569,94274.0,94271.0,0.0021288]
[1740412447975,0.10264569,94272.0,94271.0,0.0021288]
[1740412448212,0.26404226,94272.0,94271.0,0.0021288]
[1740412448448,0.26404226,94272.0,94271.0,0.0008608]
[1740412449148,0.25464569,94272.0,94271.0,0.0008608]
[1740412450134,0.58280347,94272.0,94271.0,0.0008608]
[1740412450384,0.74191747,94272.0,94271.0,0.0008608]
[1740412450869,0.76191747,94272.0,94271.0,0.0008608]
[1740412451109,0.76191747,94272.0,94237.0,0.0489]
[1740412451110,0.15,94256.0,94237.0,0.0489]
[1740412451335,0.212209,94247.0,94221.0,0.075]
[1740412451519,0.15,94236.0,94220.0,0.0466]
[1740412451728,0.15,94234.0,94220.0,0.0466]
[1740412451944,0.01893571,94250.0,94220.0,0.0466]
[1740412451945,0.10264569,94233.0,94220.0,0.0466]
[1740412452378,0.15,94232.0,94220.0,0.0466]
[1740412452591,0.10264569,94231.0,94220.0,0.0466]
[1740412452806,0.10264569,94231.0,94220.0,0.04673022]
[1740412453645,0.10264569,94231.0,94220.0,0.04873022]
[1740412453881,0.10264569,94231.0,94220.0,0.04673022]
[1740412454340,0.10264569,94231.0,94220.0,0.05073022]
[1740412454829,0.12791026,94231.0,94220.0,0.05073022]
[1740412455063,0.10264569,94231.0,94220.0,0.05073022]
[1740412456790,0.10264569,94228.0,94220.0,0.05073022]
[1740412457046,0.15,94222.0,94220.0,0.00013022]
[1740412457326,0.31361693,94238.0,94220.0,0.00213022]
[1740412457327,0.45165111,94221.0,94220.0,0.00213022]
[1740412457606,0.45165111,94221.0,94220.0,0.000305]
[1740412457861,0.29245111,94221.0,94200.0,0.0017358]
[1740412458110,0.27521586,94220.0,94200.0,0.0017358]
[1740412458586,0.43441686,94220.0,94200.0,0.0017358]
[1740412458858,0.27521586,94220.0,94200.0,0.0017358]
[1740412459663,0.26067501,94220.0,94200.0,0.0017358]
[1740412459918,0.10264569,94220.0,94203.0,0.212306]
[1740412460162,0.10264569,94220.0,94219.0,0.050095]
[1740412461155,0.002,94220.0,94219.0,0.050095]
[1740412461434,0.00012978,94221.0,94219.0,0.050095]
[1740412461661,0.25264569,94220.0,94219.0,0.001695]
[1740412461894,0.29246409,94220.0,94219.0,0.001695]
[1740412462624,0.29246409,94220.0,94200.0,0.0017358]
[1740412462625,0.309233,94201.0,94200.0,0.0017358]
[1740412462888,0.10264569,94201.0,94200.0,0.0017358]
[1740412464100,0.26187869,94201.0,94200.0,0.0017358]
[1740412464341,0.46481339,94201.0,94200.0,0.0017358]
[1740412464578,0.47813339,94201.0,94200.0,0.0017358]
[1740412465058,0.57958262,94201.0,94200.0,0.0017358]
[1740412465790,0.57758262,94201.0,94200.0,0.0017358]
[1740412466988,0.73681562,94201.0,94200.0,0.0017358]
[1740412467241,0.58058262,94201.0,94200.0,0.0017358]
[1740412467464,0.57758262,94201.0,94200.0,0.0017358]
[1740412467696,0.67849418,94201.0,94200.0,0.0017358]
[1740412467959,0.67249418,94201.0,94200.0,0.0017358]
[1740412468205,0.41626262,94201.0,94200.0,0.0017358]
[1740412468444,0.42226262,94201.0,94200.0,0.0017358]
[1740412470167,0.41626262,94201.0,94200.0,0.0017358]
[1740412470458,0.42226262,94201.0,94200.0,0.0017358]
[1740412470692,0.56626262,94201.0,94200.0,0.0017358]
[1740412471210,0.25464569,94201.0,94200.0,0.0017358]
[1740412475027,0.10464569,94201.0,94200.0,0.0017358]
[1740412476044,0.10464569,94201.0,94200.0,0.0472358]
[1740412476248,0.002,94201.0,94200.0,0.22350164]
[1740412476875,0.01128,94243.0,94212.0,0.00459726]
[1740412477083,0.01877292,94250.0,94220.0,0.16379826]
[1740412477274,0.01877292,94250.0,94220.0,0.16179826]
[1740412477489,0.09394158,94247.0,94220.0,0.16179826]
[1740412477721,0.09394158,94247.0,94220.0,0.16079826]
[1740412477978,0.09394158,94247.0,94220.0,0.18537268]
[1740412478185,0.09394158,94247.0,94220.0,0.02917168]
[1740412478524,0.09394158,94247.0,94213.0,0.13009726]
[1740412478726,0.09394158,94247.0,94213.0,0.1255]
[1740412478931,0.09394158,94247.0,94217.0,0.00459726]
[1740412479330,0.10264569,94220.0,94213.0,0.1255]
[1740412480138,0.00112978,94221.0,94214.0,0.00459726]
[1740412480343,0.00112978,94221.0,94215.0,0.01300973]
[1740412480974,0.00012978,94221.0,94215.0,0.01300973]
[1740412481147,0.10264569,94220.0,94213.0,0.1255]
[1740412481351,0.10264569,94220.0,94213.0,0.05]
[1740412481574,0.10264569,94220.0,94213.0,0.045]
[1740412481917,0.10264569,94220.0,94215.0,0.005]
[1740412482362,0.10264569,94220.0,94213.0,0.045]
[1740412482565,0.15,94219.0,94213.0,0.05]
[1740412482777,0.15,94217.0,94213.0,0.05]
[1740412482980,0.10264569,94216.0,94213.0,0.05]
[1740412483184,0.15,94215.0,94213.0,0.05]
[1740412483392,0.001,94220.0,94213.0,0.05545973]
[1740412483598,0.15,94218.0,94213.0,0.05545973]
[1740412483799,0.15,94216.0,94213.0,0.05045973]
[1740412484207,0.15,94216.0,94215.0,0.004]
[1740412484424,0.15,94216.0,94213.0,0.045]
[1740412484624,0.002,94220.0,94215.0,0.00459726]
[1740412485044,0.10264569,94219.0,94213.0,0.045]
[1740412485253,0.001,94216.0,94213.0,0.049]
[1740412485465,0.10264569,94215.0,94213.0,0.049]
[1740412485643,0.10264569,94215.0,94213.0,0.045]
[1740412486204,0.10264569,94215.0,94197.0,0.0479]
[1740412486205,0.15,94214.0,94197.0,0.0479]
[1740412486430,0.15,94212.0,94197.0,0.0479]
[1740412486629,0.10264569,94211.0,94198.0,0.00459726]
[1740412486837,0.10264569,94211.0,94197.0,0.0479]
[1740412487035,0.15,94210.0,94197.0,0.0479]
[1740412487235,0.10264569,94209.0,94197.0,0.0479]
[1740412487609,0.15,94208.0,94197.0,0.0479]
[1740412487814,0.15,94206.0,94197.0,0.0479]
[1740412488092,0.15,94204.0,94187.0,0.0016958]
[1740412488321,0.10264569,94203.0,94187.0,0.0016958]
[1740412488735,0.10264569,94203.0,94200.0,0.0027358]
[1740412489915,0.10264569,94203.0,94200.0,0.0017358]
[1740412490109,0.10264569,94203.0,94200.0,0.0037358]
[1740412490358,0.10264569,94203.0,94200.0,0.0017358]
[1740412490702,0.10264569,94203.0,94200.0,0.0037358]
[1740412491940,0.00791973,94219.0,94200.0,0.0037358]
[1740412492143,0.10264569,94218.0,94200.0,0.0037358]
[1740412492395,0.15,94217.0,94200.0,0.0037358]
[1740412492654,0.10264569,94216.0,94200.0,0.0037358]
[1740412492818,0.10264569,94216.0,94202.0,0.00459726]
[1740412492969,0.10264569,94216.0,94204.0,0.00459726]
[1740412493780,0.10264569,94216.0,94200.0,0.0037358]
[1740412493983,0.10264569,94216.0,94204.0,0.00459726]
[1740412494204,0.10260569,94216.0,94204.0,0.00459726]
[1740412494531,0.10260569,94216.0,94200.0,0.0017358]
[1740412494846,0.10260569,94216.0,94186.0,0.212345]
[1740412495052,0.10260569,94216.0,94181.0,0.3214]
[1740412495196,0.10260569,94216.0,94187.0,0.1609518]
[1740412495398,0.10260569,94216.0,94188.0,0.212341]
[1740412495600,0.10260569,94216.0,94187.0,0.0016958]
[1740412495801,0.10260569,94216.0,94193.0,0.159247]
[1740412496034,0.10260569,94216.0,94194.0,0.159245]
[1740412496208,0.10260569,94216.0,94187.0,0.0016958]
[1740412496432,0.10260569,94216.0,94200.0,0.001]
[1740412496624,0.10260569,94216.0,94197.0,0.15924]
[1740412497011,0.10260569,94216.0,94187.0,0.2140378]
[1740412497012,0.10260569,94216.0,94195.0,0.159242]
[1740412497253,0.10260569,94216.0,94188.0,0.3214]
[1740412497690,0.10260569,94216.0,94195.0,0.159242]
[1740412497911,0.10260569,94216.0,94193.0,0.212328]
[1740412498177,0.10260569,94216.0,94194.0,0.159244]
[1740412498439,0.15,94215.0,94188.0,0.3214]
[1740412498687,0.15,94215.0,94187.0,0.0016958]
[1740412498688,0.15,94213.0,94187.0,0.0016958]
[1740412498904,0.15,94211.0,94187.0,0.0016958]
[1740412499113,0.15,94209.0,94187.0,0.0016958]
[1740412499319,0.15,94207.0,94187.0,0.0016958]
[1740412499528,0.15,94205.0,94187.0,0.0016958]
[1740412499730,0.02526457,94212.0,94187.0,0.0016958]
[1740412499731,0.15,94203.0,94187.0,0.0016958]
[1740412499969,0.15,94200.0,94187.0,0.0016958]
[1740412500174,0.10264569,94199.0,94187.0,0.0016958]
[1740412500796,0.0112,94219.0,94188.0,0.159255]
[1740412501027,0.00012978,94221.0,94188.0,0.159255]
[1740412501028,0.00012978,94221.0,94188.0,0.0819]
[1740412501264,0.00012978,94221.0,94195.0,0.212324]
[1740412501480,0.10349479,94220.0,94201.0,0.159233]
[1740412501685,0.10349479,94220.0,94190.0,0.212336]
[1740412501686,0.001,94199.0,94190.0,0.212336]
[1740412501893,0.001,94199.0,94191.0,0.10264569]
[1740412502103,0.001,94199.0,94189.0,0.212338]
[1740412502319,0.001,94199.0,94188.0,0.083599]
[1740412502546,0.10264569,94198.0,94188.0,0.002699]
[1740412502758,0.001,94199.0,94188.0,0.002699]
[1740412503191,0.001,94199.0,94189.0,0.212339]
[1740412503400,0.15,94216.0,94190.0,0.15925]
[1740412503608,0.15,94214.0,94192.0,0.159248]
[1740412503813,0.15,94212.0,94188.0,0.001699]
[1740412504021,0.10264569,94211.0,94195.0,0.159242]
[1740412504230,0.10264569,94211.0,94188.0,0.001699]
[1740412504231,0.10264569,94211.0,94196.0,0.15924]
[1740412504444,0.001,94199.0,94189.0,0.004]
[1740412504661,0.10264569,94211.0,94192.0,0.159248]
[1740412504882,0.10264569,94211.0,94189.0,0.212338]
[1740412505097,0.10264569,94211.0,94191.0,0.159249]
[1740412505332,0.0008491,94220.0,94192.0,0.42404569]
[1740412505542,0.0008491,94220.0,94219.0,0.159203]
[1740412505755,0.0008491,94220.0,94219.0,0.209103]
[1740412505966,0.0008491,94220.0,94219.0,0.288503]
[1740412506609,0.0008491,94220.0,94219.0,0.287503]
[1740412507730,0.0008491,94220.0,94219.0,0.1293]
[1740412507943,0.0008491,94220.0,94219.0,0.294503]
[1740412508139,0.0018491,94220.0,94219.0,0.294503]
[1740412508387,0.0018491,94220.0,94219.0,0.1353]
[1740412509893,0.12032725,94220.0,94204.0,0.0474]
[1740412510105,0.25264569,94219.0,94204.0,0.0474]
[1740412510317,0.25264569,94219.0,94198.0,0.00992595]
[1740412510741,0.25264569,94219.0,94191.0,0.212334]
[1740412510956,0.25264569,94219.0,94190.0,0.0498]
[1740412511221,0.26066498,94219.0,94190.0,0.0498]
[1740412511464,0.26066498,94219.0,94204.0,0.002]
[1740412511713,0.15,94215.0,94190.0,0.0498]
[1740412511967,0.15,94213.0,94190.0,0.0498]
[1740412512211,0.15,94211.0,94190.0,0.0498]
[1740412512465,0.15,94209.0,94190.0,0.0498]
[1740412512671,0.15,94206.0,94190.0,0.0498]
[1740412512882,0.15,94202.0,94198.0,0.003]
[1740412513106,0.15,94200.0,94198.0,0.003]
[1740412513326,0.10264569,94199.0,94190.0,0.0498]
[1740412514207,0.25264569,94199.0,94198.0,0.001]
[1740412514422,0.25264569,94199.0,94190.0,0.0498]
[1740412514850,0.15,94196.0,94190.0,0.0498]
[1740412515076,0.15,94194.0,94190.0,0.0498]
[1740412515281,0.15,94192.0,94188.0,0.001699]
[1740412515490,0.15,94190.0,94188.0,0.001699]
[1740412515699,0.25264569,94189.0,94188.0,0.001699]
[1740412516720,0.25264569,94189.0,94188.0,0.003699]
[1740412517573,0.25264569,94189.0,94188.0,0.001699]
[1740412517975,0.25264569,94189.0,94188.0,0.003699]
[1740412519445,0.25264569,94189.0,94188.0,0.001699]
[1740412519649,0.25264569,94189.0,94188.0,0.003699]
[1740412519826,0.25264569,94189.0,94188.0,0.001699]
[1740412520327,0.25264569,94189.0,94188.0,0.002699]
[1740412520523,0.25264569,94189.0,94188.0,0.001699]
[1740412520933,0.25364569,94189.0,94188.0,0.001699]
[1740412521372,0.27901026,94189.0,94188.0,0.001699]
[1740412522414,0.25264569,94189.0,94188.0,0.001699]
[1740412523237,0.25364569,94189.0,94188.0,0.001699]
[1740412525992,0.15,94188.0,94164.0,0.0016966]
[1740412526197,0.25264569,94188.0,94164.0,0.0016966]
[1740412526434,0.30850812,94188.0,94164.0,0.0016966]
[1740412526609,0.15,94178.0,94177.0,0.00182649]
[1740412526820,0.25264569,94178.0,94177.0,0.00182649]
[1740412527500,0.41191769,94178.0,94177.0,0.00182649]
[1740412527713,0.25264569,94178.0,94177.0,0.00182649]
[1740412527929,0.28638784,94178.0,94177.0,0.00182649]
[1740412528578,0.25264569,94178.0,94177.0,0.00182649]
[1740412529210,0.25264569,94178.0,94177.0,0.00282649]
[1740412529809,0.25264569,94178.0,94177.0,0.00182649]
[1740412531775,0.09394158,94192.0,94177.0,0.04742649]
[1740412531999,0.10264569,94191.0,94177.0,0.04742649]
[1740412532210,0.15,94190.0,94177.0,0.04842649]
[1740412532418,0.15,94188.0,94177.0,0.04842649]
[1740412532636,0.10264569,94187.0,94177.0,0.04842649]
[1740412532877,0.09394158,94192.0,94177.0,0.04842649]
[1740412533083,0.10264569,94191.0,94177.0,0.04742649]
[1740412533502,0.15,94190.0,94177.0,0.04742649]
[1740412533731,0.15,94188.0,94177.0,0.04742649]
[1740412533964,0.15,94186.0,94177.0,0.00182649]
[1740412534176,0.15,94184.0,94177.0,0.00182649]
[1740412534383,0.15,94182.0,94177.0,0.00182649]
[1740412534585,0.10264569,94181.0,94177.0,0.00182649]
[1740412534995,0.15,94180.0,94177.0,0.00182649]
[1740412535199,0.10264569,94179.0,94177.0,0.00182649]
[1740412535651,0.15,94206.0,94177.0,0.00282649]
[1740412535858,0.15,94199.0,94177.0,0.00182649]
[1740412536087,0.10264569,94198.0,94177.0,0.00282649]
[1740412536310,0.15,94197.0,94177.0,0.00282649]
[1740412536534,0.10264569,94196.0,94177.0,0.01820716]
[1740412536753,0.15,94195.0,94177.0,0.00282649]
[1740412536968,0.15,94193.0,94177.0,0.00182649]
[1740412537176,0.15,94191.0,94177.0,0.00182649]
[1740412537382,0.15,94193.0,94177.0,0.00182649]
[1740412537383,0.15,94189.0,94177.0,0.00182649]
[1740412537586,0.15,94187.0,94177.0,0.00182649]
[1740412537805,0.15,94185.0,94177.0,0.00182649]
[1740412538015,0.10264569,94184.0,94177.0,0.00182649]
[1740412538805,0.309272,94178.0,94177.0,0.00182649]
[1740412539036,0.26384569,94178.0,94177.0,0.00182649]
[1740412543201,0.25264569,94178.0,94177.0,0.00182649]
[1740412543404,0.31361693,94183.0,94178.0,0.0469]
[1740412543618,0.09394158,94191.0,94178.0,0.0469]
[1740412543820,0.09394158,94191.0,94179.0,0.01293227]
[1740412544040,0.10264569,94190.0,94178.0,0.0469]
[1740412544666,0.15,94189.0,94178.0,0.0469]
[1740412544880,0.09394158,94191.0,94190.0,0.159252]
[1740412545094,0.09394158,94191.0,94178.0,0.0489]
[1740412545306,0.09394158,94191.0,94183.0,0.159264]
[1740412545507,0.09394158,94191.0,94180.0,0.212359]
[1740412545686,0.09394158,94191.0,94179.0,0.01313227]
[1740412545941,0.15,94216.0,94184.0,0.159262]
[1740412546123,0.14767658,94219.0,94179.0,0.01313227]
[1740412546270,0.001,94191.0,94181.0,0.212355]
[1740412546479,0.10264569,94216.0,94183.0,0.159262]
[1740412546801,0.10264569,94216.0,94181.0,0.0157836]
[1740412547003,0.10264569,94216.0,94182.0,0.00148638]
[1740412547167,0.10264569,94216.0,94184.0,0.01454085]
[1740412547370,0.10264569,94216.0,94201.0,0.159233]
[1740412547569,0.10264569,94216.0,94201.0,0.159232]
[1740412547820,0.10264569,94216.0,94186.0,0.01454085]
[1740412548016,0.001,94191.0,94190.0,0.159252]
[1740412548221,0.001,94191.0,94190.0,0.480652]
[1740412548427,0.001,94191.0,94190.0,0.50452773]
[1740412548797,0.10264569,94216.0,94199.0,0.159237]
[1740412548978,0.10264569,94216.0,94198.0,0.212317]
[1740412549186,0.10264569,94216.0,94190.0,0.34527573]
[1740412549388,0.10264569,94216.0,94192.0,0.212332]
[1740412549710,0.10264569,94216.0,94199.0,0.159236]
[1740412549890,0.10264569,94216.0,94200.0,0.159234]
[1740412550087,0.10264569,94216.0,94198.0,0.212318]
[1740412550292,0.10264569,94216.0,94203.0,0.15923]
[1740412550500,0.10264569,94216.0,94198.0,0.212318]
[1740412550749,0.10264569,94216.0,94199.0,0.18168203]
[1740412550963,0.10264569,94216.0,94199.0,0.02244503]